fUST/lending_fUST_20240416
["ID","MTS","AMOUNT","RATE_DAILY","PERIOD"]
[322695467,1713221448302,-594.06,0.00032876,7]
[322695469,1713221448311,-500.0,0.00032876,7]
[322695471,1713221448321,-500.0,0.00032876,7]
[322695473,1713221448429,-500.0,0.00032876,7]
[322695474,1713221448439,-500.0,0.00032876,7]
[322695475,1713221448448,-500.0,0.00032876,7]
[322695476,1713221448458,-504.35,0.00032876,7]
[322695477,1713221448466,-500.0,0.00032876,7]
[322695478,1713221448475,-5437.54,0.00032876,7]
[322695479,1713221448484,-517.96,0.00032876,7]
[322695481,1713221448493,-757.64,0.00032876,7]
[322695483,1713221448503,-930.44,0.00032876,7]
[322695484,1713221448512,-500.0,0.00032876,7]
[322695485,1713221448520,-500.0,0.00032876,7]
[322695486,1713221448529,-500.0,0.00032876,7]
[322695487,1713221448539,-500.0,0.00032876,7]
[322695488,1713221448547,-523.24,0.00032876,7]
[322695489,1713221448556,-500.0,0.00032876,7]
[322695490,1713221448566,-1012.3,0.00032876,7]
[322695491,1713221448575,-813.33,0.00032876,7]
[322695492,1713221448585,-1185.24,0.00032876,7]
[322695493,1713221448594,-500.0,0.00032876,7]
[322695494,1713221448603,-984.53,0.00032876,7]
[322695495,1713221448612,-500.0,0.00032876,7]
[322695496,1713221448623,-716.89,0.00032876,7]
[322695497,1713221448632,-500.0,0.00032876,7]
[322695498,1713221448640,-1505.32,0.00032876,7]
[322695499,1713221448650,-1191.97,0.00032876,7]
[322695500,1713221448659,-2171.88,0.00032876,7]
[322695501,1713221448675,-601.42,0.00032876,7]
[322695502,1713221448683,-612.64,0.00032876,7]
[322695503,1713221448692,-500.0,0.00032876,7]
[322695504,1713221448701,-655.36,0.00032876,7]
[322695505,1713221448712,-500.0,0.00032876,7]
[322695506,1713221448721,-494.44060134,0.00032876,7]
[322695507,1713221448731,-500.0,0.00032876,7]
[322695508,1713221448740,-736.71,0.00032876,7]
[322695509,1713221448753,-296.88206083,0.00032876,7]
[322695510,1713221448762,-1200.0,0.00033,4]
[322695511,1713221448771,-181.0,0.00033,2]
[322695512,1713221448780,-823.0,0.00033131,2]
[322695513,1713221448789,-9806.48,0.00033147,2]
[322695514,1713221448798,-9806.48,0.00033147,2]
[322695515,1713221448807,-9806.48,0.00033147,2]
[322695516,1713221448817,-9806.48,0.00033147,2]
[322695517,1713221448826,-9806.48,0.00033147,2]
[322695518,1713221448835,-9806.48,0.00033147,2]
[322695519,1713221448844,-9806.48,0.00033147,2]
[322695520,1713221448853,-9806.48,0.00033147,2]
[322695521,1713221448862,-9806.48,0.00033147,2]
[322695522,1713221448871,-9806.48,0.00033147,2]
[322695523,1713221448880,-151.0,0.00033147,2]
[322695524,1713221448889,-151.0,0.00033147,2]
[322695525,1713221448898,-6250.361279,0.00033147,2]
[322695526,1713221448907,-6250.361279,0.00033147,2]
[322695527,1713221448916,-2198.16,0.00033149,7]
[322695528,1713221448926,-4788.14,0.00033149,7]
[322695529,1713221448936,-810.58,0.0003315,7]
[322695530,1713221448945,-500.0,0.0003315,7]
[322695531,1713221448954,-669.09,0.0003315,7]
[322695532,1713221448963,-1175.42,0.0003315,7]
[322695533,1713221448973,-636.37,0.0003315,7]
[322695534,1713221448982,-594.06,0.0003315,7]
[322695535,1713221448991,-500.0,0.0003315,7]
[322695536,1713221448999,-500.0,0.0003315,7]
[322695537,1713221449008,-500.0,0.0003315,7]
[322695538,1713221449018,-500.0,0.0003315,7]
[322695539,1713221449027,-500.0,0.0003315,7]
[322695540,1713221449036,-504.35,0.0003315,7]
[322695541,1713221449046,-500.0,0.0003315,7]
[322695542,1713221449055,-5437.54,0.0003315,7]
[322695543,1713221449064,-517.96,0.0003315,7]
[322695544,1713221449073,-757.64,0.0003315,7]
[322695545,1713221449082,-930.44,0.0003315,7]
[322695546,1713221449092,-500.0,0.0003315,7]
[322695547,1713221449101,-500.0,0.0003315,7]
[322695548,1713221449110,-500.0,0.0003315,7]
[322695549,1713221449119,-500.0,0.0003315,7]
[322695550,1713221449128,-523.24,0.0003315,7]
[322695551,1713221449138,-500.0,0.0003315,7]
[322695552,1713221449147,-1012.3,0.0003315,7]
[322695553,1713221449156,-813.33,0.0003315,7]
[322695554,1713221449165,-1185.24,0.0003315,7]
[322695555,1713221449176,-500.0,0.0003315,7]
[322695556,1713221449185,-984.53,0.0003315,7]
[322695557,1713221449194,-500.0,0.0003315,7]
[322695558,1713221449203,-716.89,0.0003315,7]
[322695559,1713221449212,-500.0,0.0003315,7]
[322695560,1713221449222,-1505.32,0.0003315,7]
[322695561,1713221449231,-1191.97,0.0003315,7]
[322695562,1713221449240,-2171.88,0.0003315,7]
[322695563,1713221449249,-601.42,0.0003315,7]
[322695564,1713221449259,-500.0,0.0003315,7]
[322695565,1713221449268,-655.36,0.0003315,7]
[322695566,1713221449277,-500.0,0.0003315,7]
[322695567,1713221449286,-500.0,0.0003315,7]
[322695568,1713221449294,-736.71,0.0003315,7]
[322695569,1713221449303,-414.977296,0.00033165,2]
[322695570,1713221449313,-345.379529,0.00033165,2]
[322695571,1713221449322,-170.29786094,0.00033194,2]
[322695572,1713221449331,-166.0,0.00033226,2]
[322695573,1713221449340,-266.08054062,0.00033327,2]
[322695574,1713221449349,-438.553937,0.00033422,2]
[322695575,1713221449358,-438.553937,0.00033422,2]
[322695576,1713221449367,-151.0,0.00033422,2]
[322695577,1713221449376,-151.0,0.00033422,2]
[322695578,1713221449385,-151.0,0.00033422,2]
[322695579,1713221449394,-15950.24,0.00033422,7]
[322695580,1713221449403,-151.0,0.00033422,2]
[322695581,1713221449412,-969.937932,0.00033422,2]
[322695582,1713221449423,-969.937932,0.00033422,2]
[322695583,1713221449432,-2198.16,0.00033423,7]
[322695584,1713221449441,-15950.24,0.00033423,7]
[322695585,1713221449451,-4788.14,0.00033423,7]
[322695586,1713221449460,-810.58,0.00033424,7]
[322695587,1713221449469,-500.0,0.00033424,7]
[322695588,1713221449478,-669.09,0.00033424,7]
[322695589,1713221449487,-1175.42,0.00033424,7]
[322695590,1713221449496,-636.37,0.00033424,7]
[322695591,1713221449505,-594.06,0.00033424,7]
[322695592,1713221449514,-500.0,0.00033424,7]
[322695593,1713221449523,-628.53519674,0.00033424,7]
[322695594,1713221449532,-500.0,0.00033424,7]
[322695595,1713221449541,-472.27189478,0.00033424,7]
[322695596,1713221449550,-500.0,0.00033424,7]
[322695597,1713221449560,-504.35,0.00033424,7]
[322695598,1713221449569,-500.0,0.00033424,7]
[322695599,1713221449578,-5437.54,0.00033424,7]
[322695600,1713221449586,-517.96,0.00033424,7]
[322695601,1713221449595,-757.64,0.00033424,7]
[322695602,1713221449605,-930.44,0.00033424,7]
[322695603,1713221449614,-500.0,0.00033424,7]
[322695604,1713221449623,-500.0,0.00033424,7]
[322695605,1713221449632,-500.0,0.00033424,7]
[322695606,1713221449641,-500.0,0.00033424,7]
[322695607,1713221449651,-523.24,0.00033424,7]
[322695608,1713221449660,-500.0,0.00033424,7]
[322695609,1713221449669,-1012.3,0.00033424,7]
[322695610,1713221449680,-813.33,0.00033424,7]
[322695611,1713221449689,-1185.24,0.00033424,7]
[322695612,1713221449698,-500.0,0.00033424,7]
[322695613,1713221449707,-984.53,0.00033424,7]
[322695614,1713221449717,-500.0,0.00033424,7]
[322695615,1713221449726,-716.89,0.00033424,7]
[322695616,1713221449735,-424.68043804,0.00033424,7]
[322695617,1713221449744,-1505.32,0.00033424,7]
[322695618,1713221449754,-1191.97,0.00033424,7]
[322695619,1713221449763,-2171.88,0.00033424,7]
[322695620,1713221449772,-601.42,0.00033424,7]
[322695621,1713221449781,-500.0,0.00033424,7]
[322695622,1713221449790,-655.36,0.00033424,7]
[322695623,1713221449799,-500.0,0.00033424,7]
[322695624,1713221449808,-500.0,0.00033424,7]
[322695625,1713221449817,-736.71,0.00033424,7]
[322695626,1713221449828,-160.057611,0.00033486,2]
[322695627,1713221449837,-3000.0,0.000335,2]
[322695628,1713221449847,-3000.0,0.0003351,2]
[322695629,1713221449858,-2198.16,0.00033519,7]
[322695630,1713221449868,-15950.24,0.00033519,7]
[322695631,1713221449879,-500.0,0.0003352,120]
[322695632,1713221449890,-500.0,0.0003352,120]
[322695633,1713221449900,-500.0,0.0003352,120]
[322695634,1713221449910,-500.0,0.0003352,120]
[322695635,1713221449921,-500.0,0.0003352,120]
[322695636,1713221449932,-500.0,0.0003352,120]
[322695637,1713221449942,-500.0,0.0003352,120]
[322695638,1713221449953,-500.0,0.0003352,120]
[322695639,1713221449962,-500.0,0.0003352,120]
[322695640,1713221449973,-500.0,0.0003352,120]
[322695641,1713221449984,-500.0,0.0003352,120]
[322695642,1713221449994,-500.0,0.0003352,120]
[322695643,1713221450004,-500.0,0.0003352,120]
[322695644,1713221450014,-500.0,0.0003352,120]
[322695645,1713221450025,-500.0,0.0003352,120]
[322695646,1713221450035,-500.0,0.0003352,120]
[322695647,1713221450045,-500.0,0.0003352,120]
[322695648,1713221450056,-500.0,0.0003352,120]
[322695649,1713221450065,-320.8,0.0003352,120]
[322695650,1713221450075,-500.0,0.0003352,120]
[322695651,1713221450086,-500.0,0.0003352,120]
[322695652,1713221450095,-500.0,0.0003352,120]
[322695653,1713221450106,-500.0,0.0003352,120]
[322695654,1713221450116,-500.0,0.0003352,120]
[322695655,1713221450126,-500.0,0.0003352,120]
[322695656,1713221450136,-500.0,0.0003352,120]
[322695657,1713221450146,-500.0,0.0003352,120]
[322695658,1713221450156,-500.0,0.0003352,120]
[322695659,1713221450166,-500.0,0.0003352,120]
[322695660,1713221450175,-500.0,0.0003352,120]
[322695661,1713221450185,-500.0,0.0003352,120]
[322695662,1713221450195,-500.0,0.0003352,120]
[322695663,1713221450204,-500.0,0.0003352,120]
[322695664,1713221450215,-500.0,0.0003352,120]
[322695665,1713221450225,-500.0,0.0003352,120]
[322695666,1713221450235,-500.0,0.0003352,120]
[322695667,1713221450245,-500.0,0.0003352,120]
[322695669,1713221450255,-500.0,0.0003352,120]
[322695670,1713221450264,-500.0,0.0003352,120]
[322695671,1713221450275,-500.0,0.0003352,120]
[322695672,1713221450285,-500.0,0.0003352,120]
[322695674,1713221450295,-500.0,0.0003352,120]
[322695676,1713221450305,-500.0,0.0003352,120]
[322695678,1713221450316,-480.89,0.0003352,120]
[322695679,1713221450325,-500.0,0.0003352,120]
[322695681,1713221450335,-500.0,0.0003352,120]
[322695683,1713221450345,-500.0,0.0003352,120]
[322695685,1713221450355,-500.0,0.0003352,120]
[322695687,1713221450365,-500.0,0.0003352,120]
[322695689,1713221450375,-500.0,0.0003352,120]
[322695691,1713221450386,-500.0,0.0003352,120]
[322695693,1713221450395,-500.0,0.0003352,120]
[322695695,1713221450405,-500.0,0.0003352,120]
[322695697,1713221450415,-500.0,0.0003352,120]
[322695699,1713221450426,-500.0,0.0003352,120]
[322695701,1713221450435,-500.0,0.0003352,120]
[322695703,1713221450447,-500.0,0.0003352,120]
[322695705,1713221450457,-500.0,0.0003352,120]
[322695707,1713221450467,-500.0,0.0003352,120]
[322695709,1713221450478,-500.0,0.0003352,120]
[322695711,1713221450488,-500.0,0.0003352,120]
[322695713,1713221450498,-562.2,0.0003352,120]
[322695715,1713221450508,-500.0,0.0003352,120]
[322695718,1713221450519,-500.0,0.0003352,120]
[322695720,1713221450530,-3000.0,0.0003352,2]
[322695722,1713221450540,-3000.0,0.0003353,2]
[322695724,1713221450550,-3000.0,0.0003354,2]
[322695726,1713221450561,-3000.0,0.0003355,2]
[322695728,1713221450571,-3000.0,0.0003356,2]
[322695730,1713221450581,-1000.0,0.0003356,2]
[322695732,1713221450591,-2198.16,0.00033569,7]
[322695734,1713221450600,-3000.0,0.0003357,2]
[322695736,1713221450610,-3000.0,0.0003358,2]
[322695738,1713221450620,-3000.0,0.0003359,2]
[322695740,1713221450630,-3000.0,0.000336,2]
[322695742,1713221450640,-1000.0,0.00033601,2]
[322695744,1713221450650,-1000.0,0.00033603,2]
[322695746,1713221450659,-15950.24,0.00033609,7]
[322695748,1713221450670,-15950.24,0.00033609,7]
[322695750,1713221450682,-15950.24,0.00033609,7]
[322695752,1713221450692,-15950.24,0.00033609,7]
[322695754,1713221450701,-15950.44253243,0.00033609,7]
[322695756,1713221450710,-3000.0,0.0003361,2]
[322695757,1713221450720,-3000.0,0.0003362,2]
[322695758,1713221450731,-3000.0,0.0003363,2]
[322695759,1713221450741,-151.0,0.0003363,2]
[322695761,1713221450752,-151.0,0.0003363,2]
[322695762,1713221450763,-6250.361279,0.0003363,2]
[322695763,1713221450772,-6250.361279,0.0003363,2]
[322695764,1713221450782,-3000.0,0.0003364,2]
[322695765,1713221450792,-3000.0,0.0003365,2]
[322695766,1713221450802,-162.747607,0.0003365,2]
[322695767,1713221450813,-162.747607,0.0003365,2]
[322695768,1713221450823,-151.0,0.0003365,2]
[322695769,1713221450833,-203.972086,0.0003365,2]
[322695770,1713221450843,-151.0,0.0003365,2]
[322695771,1713221450854,-151.0,0.0003365,2]
[322695772,1713221450863,-1125.288997,0.0003365,2]
[322695773,1713221450874,-1125.288997,0.0003365,2]
[322695774,1713221450884,-208.586023,0.0003365,2]
[322695775,1713221450894,-208.586023,0.0003365,2]
[322695776,1713221450905,-3000.0,0.0003366,2]
[322695777,1713221450915,-3000.0,0.0003367,2]
[322695778,1713221450925,-3000.0,0.0003368,2]
[322695779,1713221450934,-1000.0,0.00033682,2]
[322695780,1713221450943,-3000.0,0.0003369,2]
[322695781,1713221450953,-620.5519904,0.00033695,2]
[322695782,1713221451063,-2198.16,0.00033696,7]
[322695783,1713221451074,-4788.14,0.00033697,7]
[322695784,1713221451085,-810.58,0.00033698,7]
[322695785,1713221451095,-500.0,0.00033698,7]
[322695786,1713221451105,-669.09,0.00033698,7]
[322695787,1713221451115,-1175.42,0.00033698,7]
[322695788,1713221451124,-636.37,0.00033698,7]
[322695789,1713221451134,-594.06,0.00033698,7]
[322695790,1713221451143,-500.0,0.00033698,7]
[322695791,1713221451154,-500.0,0.00033698,7]
[322695792,1713221451164,-500.0,0.00033698,7]
[322695793,1713221451177,-504.35,0.00033698,7]
[322695794,1713221451187,-500.0,0.00033698,7]
[322695795,1713221451197,-5437.54,0.00033698,7]
[322695796,1713221451207,-517.96,0.00033698,7]
[322695797,1713221451217,-757.64,0.00033698,7]
[322695798,1713221451227,-930.44,0.00033698,7]
[322695799,1713221451237,-500.0,0.00033698,7]
[322695800,1713221451248,-500.0,0.00033698,7]
[322695801,1713221451258,-500.0,0.00033698,7]
[322695802,1713221451268,-500.0,0.00033698,7]
[322695803,1713221451277,-523.24,0.00033698,7]
[322695804,1713221451288,-500.0,0.00033698,7]
[322695805,1713221451298,-1012.3,0.00033698,7]
[322695806,1713221451309,-813.33,0.00033698,7]
[322695807,1713221451318,-438.553937,0.00033698,2]
[322695808,1713221451328,-438.553937,0.00033698,2]
[322695809,1713221451338,-1185.24,0.00033698,7]
[322695810,1713221451347,-500.0,0.00033698,7]
[322695811,1713221451357,-984.53,0.00033698,7]
[322695812,1713221451367,-151.0,0.00033698,2]
[322695813,1713221451377,-151.0,0.00033698,2]
[322695814,1713221451387,-151.0,0.00033698,2]
[322695815,1713221451397,-716.89,0.00033698,7]
[322695816,1713221451406,-500.0,0.00033698,7]
[322695817,1713221451415,-151.0,0.00033698,2]
[322695818,1713221451427,-1505.32,0.00033698,7]
[322695819,1713221451436,-1191.97,0.00033698,7]
[322695820,1713221451445,-2171.88,0.00033698,7]
[322695821,1713221451454,-969.937932,0.00033698,2]
[322695822,1713221451464,-601.42,0.00033698,7]
[322695823,1713221451474,-969.937932,0.00033698,2]
[322695824,1713221451484,-500.0,0.00033698,7]
[322695825,1713221451494,-655.36,0.00033698,7]
[322695826,1713221451504,-500.0,0.00033698,7]
[322695827,1713221451513,-500.0,0.00033698,7]
[322695828,1713221451523,-736.71,0.00033698,7]
[322695829,1713221451534,-3000.0,0.000337,2]
[322695830,1713221451544,-3000.0,0.0003371,2]
[322695831,1713221451554,-3000.0,0.0003372,2]
[322695832,1713221451563,-3000.0,0.0003373,2]
[322695833,1713221451574,-2198.16,0.00033739,7]
[322695834,1713221451583,-3000.0,0.0003374,2]
[322695835,1713221451596,-577.60860636,0.00033743,6]
[322695836,1713221451605,-3000.0,0.0003375,2]
[322695837,1713221451615,-3000.0,0.0003376,2]
[322695838,1713221451624,-3000.0,0.0003377,2]
[322695839,1713221451633,-3000.0,0.0003378,2]
[322695840,1713221451642,-3000.0,0.0003379,2]
[322695841,1713221451651,-1000.0,0.00033795,2]
[322695842,1713221451660,-3000.0,0.000338,2]
[322695843,1713221451672,-3000.0,0.0003381,2]
[322695844,1713221451682,-3000.0,0.0003382,2]
[322695845,1713221451691,-1686.979263,0.0003382,2]
[322695846,1713221451700,-1686.979263,0.0003382,2]
[322695847,1713221451710,-151.0,0.0003382,2]
[322695848,1713221451724,-151.0,0.0003382,2]
[322695849,1713221451734,-151.0,0.0003382,2]
[322695850,1713221451744,-3000.0,0.0003383,2]
[322695851,1713221451754,-3000.0,0.0003384,2]
[322695852,1713221451764,-3000.0,0.0003385,2]
[322695853,1713221451774,-3000.0,0.0003386,2]
[322695854,1713221451784,-2198.16,0.00033869,7]
[322695855,1713221451794,-3000.0,0.0003387,2]
[322695856,1713221451804,-3000.0,0.0003388,2]
[322695857,1713221451814,-3000.0,0.0003389,2]
[322695858,1713221451825,-4081.904466,0.000339,2]
[322695859,1713221451835,-4788.14,0.00033971,7]
[322695860,1713221451845,-810.58,0.00033972,7]
[322695861,1713221451854,-500.0,0.00033972,7]
[322695862,1713221451863,-669.09,0.00033972,7]
[322695863,1713221451874,-1175.42,0.00033972,7]
[322695864,1713221451883,-636.37,0.00033972,7]
[322695865,1713221451892,-594.06,0.00033972,7]
[322695866,1713221451903,-500.0,0.00033972,7]
[322695867,1713221451913,-332.4130424,0.00033972,7]
[322695868,1713221451923,-500.0,0.00033972,7]
[322695869,1713221451933,-504.35,0.00033972,7]
[322695870,1713221451943,-257.813401,0.00033972,7]
[322695871,1713221451953,-5437.54,0.00033972,7]
[322695872,1713221451963,-517.96,0.00033972,7]
[322695873,1713221451974,-757.64,0.00033972,7]
[322695874,1713221451985,-930.44,0.00033972,7]
[322695875,1713221451994,-500.0,0.00033972,7]
[322695876,1713221452005,-331.83540569,0.00033972,7]
[322695877,1713221452017,-354.55961692,0.00033972,7]
[322695878,1713221452027,-500.0,0.00033972,7]
[322695879,1713221452036,-523.24,0.00033972,7]
[322695880,1713221452046,-477.10339819,0.00033972,7]
[322695881,1713221452057,-1012.3,0.00033972,7]
[322695882,1713221452068,-813.33,0.00033972,7]
[322695883,1713221452078,-1185.24,0.00033972,7]
[322695884,1713221452088,-500.0,0.00033972,7]
[322695885,1713221452098,-984.53,0.00033972,7]
[322695886,1713221452109,-716.89,0.00033972,7]
[322695887,1713221452118,-500.0,0.00033972,7]
[322695888,1713221452129,-1505.32,0.00033972,7]
[322695889,1713221452138,-1191.97,0.00033972,7]
[322695890,1713221452147,-2171.88,0.00033972,7]
[322695891,1713221452156,-601.42,0.00033972,7]
[322695892,1713221452166,-500.0,0.00033972,7]
[322695893,1713221452176,-655.36,0.00033972,7]
[322695894,1713221452185,-500.0,0.00033972,7]
[322695895,1713221452195,-500.0,0.00033972,7]
[322695896,1713221452204,-736.71,0.00033972,7]
[322695897,1713221452214,-465.39337493,0.00034,4]
[322695898,1713221452223,-620.03081899,0.00034155,2]
[322695899,1713221452234,-500.0,0.00034174,2]
[322695900,1713221452244,-2198.16,0.00034244,7]
[322695901,1713221452254,-4788.14,0.00034245,7]
[322695902,1713221452263,-810.58,0.00034246,7]
[322695903,1713221452274,-500.0,0.00034246,7]
[322695904,1713221452284,-669.09,0.00034246,7]
[322695905,1713221452294,-1175.42,0.00034246,7]
[322695906,1713221452303,-636.37,0.00034246,7]
[322695907,1713221452313,-594.06,0.00034246,7]
[322695908,1713221452323,-500.0,0.00034246,7]
[322695909,1713221452332,-500.0,0.00034246,7]
[322695910,1713221452342,-504.35,0.00034246,7]
[322695911,1713221452352,-5437.54,0.00034246,7]
[322695912,1713221452362,-517.96,0.00034246,7]
[322695913,1713221452372,-757.64,0.00034246,7]
[322695914,1713221452381,-930.44,0.00034246,7]
[322695915,1713221452391,-500.0,0.00034246,7]
[322695916,1713221452401,-500.0,0.00034246,7]
[322695917,1713221452411,-523.24,0.00034246,7]
[322695918,1713221452421,-1012.3,0.00034246,7]
[322695919,1713221452432,-813.33,0.00034246,7]
[322695920,1713221452442,-1185.24,0.00034246,7]
[322695921,1713221452452,-500.0,0.00034246,7]
[322695922,1713221452462,-984.53,0.00034246,7]
[322695923,1713221452471,-716.89,0.00034246,7]
[322695924,1713221452481,-500.0,0.00034246,7]
[322695925,1713221452490,-1505.32,0.00034246,7]
[322695926,1713221452500,-1191.97,0.00034246,7]
[322695927,1713221452511,-2171.88,0.00034246,7]
[322695928,1713221452520,-601.42,0.00034246,7]
[322695929,1713221452530,-500.0,0.00034246,7]
[322695930,1713221452540,-655.36,0.00034246,7]
[322695931,1713221452549,-500.0,0.00034246,7]
[322695932,1713221452558,-500.0,0.00034246,7]
[322695933,1713221452568,-736.71,0.00034246,7]
[322695934,1713221452578,-160.569442,0.00034247,2]
[322695935,1713221452587,-1152.0,0.000343,2]
[322695936,1713221452597,-153.0,0.00034348,2]
[322695937,1713221452606,-168.829872,0.000345,2]
[322695938,1713221452615,-1001.6341,0.000345,2]
[322695939,1713221452624,-190.1935613,0.00034518,4]
[322695940,1713221452634,-2198.16,0.00034519,7]
[322695941,1713221452643,-4788.14,0.00034519,7]
[322695942,1713221452652,-810.58,0.0003452,7]
[322695943,1713221452661,-500.0,0.0003452,7]
[322695944,1713221452670,-669.09,0.0003452,7]
[322695945,1713221452683,-1175.42,0.0003452,7]
[322695946,1713221452693,-636.37,0.0003452,7]
[322695947,1713221452703,-594.06,0.0003452,7]
[322695948,1713221452714,-500.0,0.0003452,7]
[322695949,1713221452724,-500.0,0.0003452,7]
[322695950,1713221452735,-504.35,0.0003452,7]
[322695951,1713221452745,-223.444171,0.0003452,2]
[322695952,1713221452756,-5437.54,0.0003452,7]
[322695953,1713221452767,-517.96,0.0003452,7]
[322695954,1713221452776,-757.64,0.0003452,7]
[322695955,1713221452787,-930.44,0.0003452,7]
[322695956,1713221452796,-500.0,0.0003452,7]
[322695957,1713221452805,-162.747607,0.0003452,2]
[322695958,1713221452814,-500.0,0.0003452,7]
[322695959,1713221452824,-162.747607,0.0003452,2]
[322695960,1713221452834,-523.24,0.0003452,7]
[322695961,1713221452845,-151.0,0.0003452,2]
[322695962,1713221452855,-1012.3,0.0003452,7]
[322695963,1713221452865,-151.0,0.0003452,2]
[322695964,1713221452876,-151.0,0.0003452,2]
[322695965,1713221452886,-1125.288997,0.0003452,2]
[322695966,1713221452896,-1125.288997,0.0003452,2]
[322695967,1713221452905,-813.33,0.0003452,7]
[322695968,1713221452916,-1185.24,0.0003452,7]
[322695969,1713221452927,-208.586023,0.0003452,2]
[322695970,1713221452937,-500.0,0.0003452,7]
[322695971,1713221452947,-208.586023,0.0003452,2]
[322695972,1713221452956,-984.53,0.0003452,7]
[322695973,1713221452965,-716.89,0.0003452,7]
[322695974,1713221452974,-500.0,0.0003452,7]
[322695975,1713221452984,-1505.32,0.0003452,7]
[322695976,1713221452993,-1191.97,0.0003452,7]
[322695977,1713221453002,-2171.88,0.0003452,7]
[322695978,1713221453012,-601.42,0.0003452,7]
[322695979,1713221453023,-500.0,0.0003452,7]
[322695980,1713221453032,-655.36,0.0003452,7]
[322695981,1713221453042,-151.0,0.0003452,2]
[322695982,1713221453051,-151.0,0.0003452,2]
[322695983,1713221453060,-500.0,0.0003452,7]
[322695984,1713221453070,-205.0,0.0003452,9]
[322695985,1713221453080,-6250.361279,0.0003452,2]
[322695986,1713221453091,-6250.361279,0.0003452,2]
[322695987,1713221453100,-500.0,0.0003452,7]
[322695988,1713221453109,-736.71,0.0003452,7]
[322695989,1713221453118,-500.0,0.0003452,7]
[322695990,1713221453127,-501.0,0.0003452,7]
[322695991,1713221453136,-21260.63430785,0.00034555,10]
[322695992,1713221453145,-151.0,0.00034555,2]
[322695993,1713221453154,-151.0,0.00034555,2]
[322695994,1713221453164,-438.553937,0.00034555,2]
[322695995,1713221453174,-438.553937,0.00034555,2]
[322695996,1713221453184,-151.0,0.00034555,2]
[322695997,1713221453194,-151.0,0.00034555,2]
[322695998,1713221453205,-151.0,0.00034555,2]
[322695999,1713221453214,-151.0,0.00034555,2]
[322696000,1713221453222,-969.937932,0.00034555,2]
[322696001,1713221453231,-969.937932,0.00034555,2]
[322696002,1713221453240,-150.0,0.00034669,2]
[322696003,1713221453249,-2198.16,0.00034781,7]
[322696004,1713221453259,-2198.16,0.00034781,7]
[322696005,1713221453268,-2198.16,0.00034781,7]
[322696006,1713221453277,-2198.16,0.00034781,7]
[322696007,1713221453287,-2198.16982978,0.00034781,7]
[322696008,1713221453297,-29586.77532869,0.00034782,2]
[322696009,1713221453306,-4788.14,0.00034793,7]
[322696010,1713221453316,-810.58,0.00034794,7]
[322696011,1713221453325,-500.0,0.00034794,7]
[322696012,1713221453334,-669.09,0.00034794,7]
[322696013,1713221453343,-1175.42,0.00034794,7]
[322696014,1713221453352,-636.37,0.00034794,7]
[322696015,1713221453361,-594.06,0.00034794,7]